Cogmind - Beta 16 @@@ ROGUE MODE // 2026.01.17 @ 00:50:39 Player: Legato Result: Destroyed by YI-UF0 with YI-UF0's Doublenader Performance ------------- Evolutions (1) 500 Regions Visited (4) 800 Robots Destroyed (35) 175 Value Destroyed (821) 821 Prototype IDs (2) 40 Alien Tech Used (0) 0 Bonus (0) 0 TOTAL SCORE: 2336 Bonus ------- None Cogmind --------- Core Integrity 0/400 Matter 300/300 Energy 78/100 System Corruption 0% Temperature Cool (0) Movement Core (50) Location -9/Mines Parts ------- > --- POWER (1) -------- (None) > --- PROPULSION (3) --- (None) > --- UTILITY (3) ------ (None) > --- WEAPON (2) ------- (None) > --- INVENTORY (5) ---- Ion Engine Medium Storage Unit Structural Scanner Structural Scanner Seismic Detector Peak State ------------ > --- POWER ------------ Improved Ion Engine > --- PROPULSION ------- Wheel Wheel Armored Wheel > --- UTILITY ---------- Large Storage Unit Utility Shielding Light Armor Plating > --- WEAPON ----------- Heavy Assault Rifle Improved Light Cannon > --- INVENTORY -------- Ion Engine Wheel Medium Storage Unit Large Matter Pod Large Matter Pod High-capacity Matter Pod Structural Scanner Structural Scanner Seismic Detector Core Shielding Utility Shielding Tractor Beam Assault Rifle Light Cannon Grenade Launcher [Rating: 14] Favorites ----------- Power Ion Engine Engine Ion Engine Propulsion Wheel Treads Light Treads Wheel Wheel Utility Large Storage Unit Device Seismic Detector Storage Large Storage Unit Protection Core Shielding Weapon Light Assault Rifle Energy Gun EM Pulse Gun Energy Cannon Beam Cannon Ballistic Gun Light Assault Rifle Ballistic Cannon Light Cannon Launcher Grenade Launcher Build | -11 -10 -10 -9 -9 ------- Run | Yrd Mat Min Mat Min Slots Evolved 2 | . . . 2 . Power . | . . . . . Propulsion 1 | . . . 1 . Utility 1 | . . . 1 . Weapon . | . . . . . Parts Attached 38 | 8 10 4 7 9 Power 4 | 1 1 1 1 . Engine 4 | 1 1 1 1 . Core . | . . . . . Reactor . | . . . . . Propulsion 10 | 2 3 2 2 1 Treads 5 | 1 2 1 1 . Leg . | . . . . . Wheel 5 | 1 1 1 1 1 Hover . | . . . . . Flight . | . . . . . Utility 10 | 2 3 . 3 2 Device 3 | 1 . . 1 1 Storage 3 | 1 2 . . . Processor . | . . . . . Hackware . | . . . . . Protection 4 | . 1 . 2 1 Artifact . | . . . . . Weapon 14 | 3 3 1 1 6 Energy Gun 2 | 1 . . . 1 Energy Cannon 1 | . 1 . . . Ballistic Gun 5 | 2 . . 1 2 Ballistic Cannon 2 | . . 1 . 1 Launcher 4 | . 2 . . 2 Special Weapon . | . . . . . Impact Weapon . | . . . . . Slashing Weapon . | . . . . . Piercing Weapon . | . . . . . Special Melee Weapon . | . . . . . Unidentified Prototypes . | . . . . . Parts Lost 17 | . 2 3 . 12 Power 2 | . . 1 . 1 Propulsion 4 | . . . . 4 Utility 3 | . 1 . . 2 Weapon 8 | . 1 2 . 5 Highest Loss Streak 8 | . 2 2 . 8 To Critical Strikes 1 | . . 1 . . Average Backups 11 | 4 9 14 14 14 Power . | . 1 . . 1 Propulsion 2 | 3 3 1 1 . Utility 6 | . 3 10 9 9 Weapon 1 | . . 1 3 2 Tool/Special . | . . . . . Unused Backups 14 | . 6 . . 8 Power 2 | . . . . 2 Propulsion 3 | . 3 . . . Utility 6 | . 1 . . 5 Weapon 2 | . 1 . . 1 Tool/Special 1 | . 1 . . . Average Slot Usage (%) 96 | . 98 92 99 93 Engine 11 | . 13 7 11 10 Treads 12 | . 13 14 11 6 Wheel 16 | . 13 14 22 23 Device 6 | . 10 . 6 . Storage 13 | . 14 14 11 10 Protection 9 | . 3 14 14 19 Energy Cannon 4 | . 7 . . . Ballistic Gun 14 | . 19 6 11 8 Ballistic Cannon 3 | . . 12 11 2 Launcher 3 | . 1 7 . 9 Peak Build Rating 14 | 7 8 8 11 14 Average Rating 8 | 5 7 7 10 11 On Entrance 6 | . 7 8 8 11 Avg Prop Armor Cover (%) 12 | 9 12 12 10 11 Naked Turns 6 | . . . . 6 Heaviest Build 37 | 13 30 30 36 37 Greatest Support 32 | 20 20 10 20 32 Greatest Overweight (x) 5 | 1 5 2 3 3 Average Overweight (x) 1 | . 1 2 1 1 Largest Inventory Capacity 15 | 8 15 15 15 15 Average Capacity 12 | 7 10 15 15 14 Most Carried 15 | 8 15 15 15 15 Average Carried 11 | 5 9 14 14 14 Final Capacity 15 | 8 15 15 15 5 Final Carried 15 | 8 15 15 15 5 Class Distribution -------------------- 100% | Mutant Dominant Class ---------------- Mutant | -10/Materials Mutant | -10/Mines Mutant | -9/Materials Mutant | -9/Mines Resources | -11 -10 -10 -9 -9 ----------- Run | Yrd Mat Min Mat Min Matter Collected 1520 | 258 479 281 131 371 Remotely . | . . . . . Salvage Created 1010 | 51 486 198 121 154 Parts 70 | 9 29 9 7 16 Haulers Intercepted 2 | . 2 . . . Recyclers Shooed 2 | . . 1 . 1 Parts Field Recycled . | . . . . . Retrieved Matter . | . . . . . Parts Self-Destructed . | . . . . . Prevented . | . . . . . Parts Restored . | . . . . . Kills | -11 -10 -10 -9 -9 ------- Run | Yrd Mat Min Mat Min Combat Hostiles Destroyed 19 | . 8 4 1 6 Guns 6 | . 6 . . . Cannons 5 | . 2 2 1 . AOE 8 | . . 2 . 6 Classes Destroyed 10 | 2 6 1 . 1 Worker 2 | 1 . 1 . . Builder 1 | . 1 . . . Tunneler 5 | 2 . 1 . 2 Hauler 2 | . 2 . . . Recycler 3 | . 1 1 1 . Watcher 3 | . 2 . 1 . Swarmer 3 | . 3 . . . Grunt 12 | . 5 2 . 5 Duelist 1 | . . . . 1 Sentry 3 | . . 2 1 . Best Kill Streak 6 | 2 6 3 1 3 Combat Bots Only 4 | . 4 2 1 3 Max Kills in Single Turn 2 | 1 1 2 1 2 Gunslinging . | . . . . . Exploded 2 | . . 1 . 2 Melee . | . . . . . Uniques/NPCs Destroyed . | . . . . . Combat | -11 -10 -10 -9 -9 -------- Run | Yrd Mat Min Mat Min Hostile Shots Fired 89 | . 29 19 4 37 Missed 17 | . 4 4 2 7 Hits 72 | . 25 15 2 30 Melee 6 | . . . . 6 Projectile 66 | . 25 15 2 24 AOE 18 | . . . . 18 Critical Strikes 4 | . . 1 1 2 Damage Taken 2017 | . 514 303 29 1171 Core 528 | . 32 85 . 411 Absorbed by Shields . | . . . . . Redirected to Shielding 54 | . . 17 . 37 Core Remaining (%) 76 | 100 . 53 . . Volleys Fired 120 | 10 62 17 5 26 Largest 2 | 2 2 2 2 2 Hottest 80 | 40 80 60 50 65 Shots Fired 209 | 20 119 25 10 35 Gun 142 | 20 94 5 5 18 Cannon 48 | . 21 14 5 8 Launcher 19 | . 4 6 . 9 Special . | . . . . . Kinetic 163 | 20 94 19 10 20 Thermal 27 | . 21 . . 6 Explosive 19 | . 4 6 . 9 Electromagnetic . | . . . . . Robot Hit Streak 8 | 5 7 8 4 8 Robot Miss Streak 7 | 2 7 1 1 2 Penetration Max . | . . . . . Secondary Targets . | . . . . . Shots Hit Robots 123 | 13 58 19 7 26 Core Hits 63 | 7 24 14 4 14 Critical Kills 1 | . 1 . . . Critical Parts Destroyed . | . . . . . Critical Strikes 1 | . 1 . . . Meltdown 1 | . 1 . . . Melee Attacks . | . . . . . Impact . | . . . . . Slashing . | . . . . . Piercing . | . . . . . Sneak Attacks . | . . . . . Combat Hostiles . | . . . . . Follow-up Attacks . | . . . . . Damage Inflicted 2203 | 110 599 587 111 796 Guns 759 | 110 365 23 41 220 Cannons 592 | . 228 217 70 77 Explosions 852 | . 6 347 . 499 Melee . | . . . . . Ramming . | . . . . . Kinetic 1065 | 110 365 240 111 239 Thermal 437 | . 228 151 . 58 Explosive 701 | . 6 196 . 499 Electromagnetic . | . . . . . Impact . | . . . . . Slashing . | . . . . . Piercing . | . . . . . Highest Corruption 3 | . 3 3 . . Average Corruption 3 | . 3 3 . . Corruption Purged . | . . . . . Corruption Blocked . | . . . . . Effects 4 | . 1 3 . . Message Errors 1 | . 1 . . . Energy Discharges 2 | . . 2 . . Data Loss (major) 1 | . . 1 . . Overload Shots . | . . . . . Overflow Damage 52 | . 3 36 . 13 Projectiles 11 | . 3 8 . . Explosions 41 | . . 28 . 13 Melee . | . . . . . Knockbacks 5 | . . 2 . 3 Impact . | . . . . . Kinetic 5 | . . 2 . 3 Secondary . | . . . . . Self-Inflicted Damage 358 | . 68 69 . 221 Shots 14 | . 1 4 . 9 Rammed . | . . . . . Targets Rammed . | . . . . . Kicked . | . . . . . Crushed . | . . . . . Highest Temperature 220 | . 220 10 20 48 Average Temperature 43 | . 55 6 9 19 Received Heat Transfer 318 | . 138 90 36 54 Siege Activations . | . . . . . Martial Activations . | . . . . . Shielding Activations . | . . . . . Robots Disrupted . | . . . . . Combat Hostiles . | . . . . . Robots Corrupted . | . . . . . Combat Hostiles . | . . . . . Parts Fried . | . . . . . Impact Corruptions . | . . . . . Robots Melted 1 | . 1 . . . Combat Hostiles . | . . . . . Parts Melted 1 | . 1 . . . Heat Transferred 829 | . 481 200 . 148 Parts Sabotaged . | . . . . . Parts Stolen . | . . . . . Parts Stripped . | . . . . . Power Chain Reactions . | . . . . . Alert | -11 -10 -10 -9 -9 ------- Run | Yrd Mat Min Mat Min Maximum Alert Level . | . . . . . Low Security (%) 100 | 100 100 100 100 100 Level 1 . | . . . . . Level 2 . | . . . . . Level 3 . | . . . . . Level 4 . | . . . . . Level 5 . | . . . . . High Security . | . . . . . Max Security . | . . . . . Peak Influence 145 | 5 89 99 30 145 Initial 16 | . 3 1 16 . Average 22 | . 17 52 8 28 Influence Increases 760 | 15 290 183 42 230 Destroy 0b10 Robot/C 380 | . 160 80 20 120 Destroy 0b10 Robot/NC 85 | 15 30 20 10 10 Destroy Leader 80 | . 38 10 12 20 Successful Hack 18 | . 18 . . . Disable Machine 75 | . 15 30 . 30 Destroy Structure 122 | . 29 43 . 50 Influence Decreases 725 | 10 289 145 86 195 Entered New Map 35 | . 2 5 28 . Time Decay 530 | 10 267 120 58 75 Lost Part 160 | . 20 20 . 120 Squads Dispatched 3 | . 2 . 1 . Investigation 2 | . 1 . 1 . Extermination . | . . . . . Reinforcement 1 | . 1 . . . Assault . | . . . . . Garrison . | . . . . . Intercept . | . . . . . Searches Triggered . | . . . . . Construction Impeded . | . . . . . Haulers Reinforced . | . . . . . Active Scanning Responses . | . . . . . Cargo Convoy Interrupts . | . . . . . Stealth | -11 -10 -10 -9 -9 --------- Run | Yrd Mat Min Mat Min Distress Signals 4 | . 4 . . . Communications Jammed . | . . . . . Distress Signals . | . . . . . Times Spotted 30 | . 17 4 2 7 Peak Tracking Total 4 | . 4 2 1 3 Tactical Retreats . | . . . . . Traps | -11 -10 -10 -9 -9 ------- Run | Yrd Mat Min Mat Min Traps Triggered 6 | . 6 . . . Indirectly . | . . . . . Trap Hack Attempts . | . . . . . Triggered . | . . . . . Disarmed . | . . . . . Reprogrammed . | . . . . . Reused . | . . . . . Traps Extracted . | . . . . . Installed . | . . . . . Triggered . | . . . . . Machines | -11 -10 -10 -9 -9 ---------- Run | Yrd Mat Min Mat Min Machines Disabled 7 | . 1 4 . 2 Max in Single Turn 2 | . 1 2 . 1 Machines Repaired . | . . . . . Machines Dismantled . | . . . . . Machines Sabotaged . | . . . . . Overloaded Fab Kills . | . . . . . Hacking | -11 -10 -10 -9 -9 --------- Run | Yrd Mat Min Mat Min Machines Accessed 7 | . 6 . 1 . Terminals 4 | . 4 . . . Fabricators . | . . . . . Repair Stations . | . . . . . Recycling Units 2 | . 2 . . . Scanalyzers 1 | . . . 1 . Garrison Access . | . . . . . Total Hacks 19 | . 15 . 4 . Successful 11 | . 9 . 2 . Failed 7 | . 6 . 1 . Catastrophic 2 | . 2 . . . Database Lockouts 1 | . . . 1 . Manual 5 | . 5 . . . Terminals 10 | . 10 . . . Fabricators . | . . . . . Repair Stations . | . . . . . Recycling Units 5 | . 5 . . . Scanalyzers 4 | . . . 4 . Garrison Access . | . . . . . Terminal Hacks 4 | . 4 . . . Prototype ID Bank 1 | . 1 . . . Locate Traps 2 | . 2 . . . Maintenance Status 1 | . 1 . . . Fabricator Hacks . | . . . . . Repair Station Hacks . | . . . . . Recycling Unit Hacks 4 | . 4 . . . Report Inventory 2 | . 2 . . . Retrieve Components 2 | . 2 . . . Scanalyzer 2 | . . . 2 . Retrieve Study 2 | . . . 2 . Garrison Access Hacks . | . . . . . Unauthorized Hacks 1 | . 1 . . . Terminals 1 | . 1 . . . Botnet 1 | . 1 . . . Fabricators . | . . . . . Repair Stations . | . . . . . Recycling Units . | . . . . . Scanalyzers . | . . . . . Garrison Access . | . . . . . Data Cores Recovered . | . . . . . Used . | . . . . . Hacking Detections 5 | . 4 . 1 . Full Trace Events 2 | . 1 . 1 . Feedback Events . | . . . . . Feedback Blocked . | . . . . . Robot Schematics Acquired . | . . . . . Robots Built . | . . . . . Authchips . | . . . . . Time . | . . . . . Total Robot Build Rating . | . . . . . Part Schematics Acquired . | . . . . . Parts Built . | . . . . . Authchips . | . . . . . Time . | . . . . . Total Part Build Rating . | . . . . . Part Studies Acquired 2 | . . . 2 . Parts Repaired . | . . . . . Time . | . . . . . Parts Recycled . | . . . . . Recycled Matter . | . . . . . Retrieved Matter . | . . . . . Retrieved Components 12 | . 12 . . . Parts Scanalyzed . | . . . . . Part Schematics Acquired . | . . . . . Parts Damaged . | . . . . . Bothacking | -11 -10 -10 -9 -9 ------------ Run | Yrd Mat Min Mat Min Used RIF Installer . | . . . . . Robots Hacked . | . . . . . Non-combat . | . . . . . Combat . | . . . . . Robot Hacks Applied . | . . . . . Relay Couplers Released . | . . . . . Fabnet Peak Effective % . | . . . . . Robots Rewired . | . . . . . Allies Hacked . | . . . . . Hacks Repelled . | . . . . . Allies | -11 -10 -10 -9 -9 -------- Run | Yrd Mat Min Mat Min Total Allies . | . . . . . Largest Group . | . . . . . Highest-Rated Group . | . . . . . Highest-Rated Ally . | . . . . . Total Orders . | . . . . . Ally Attacks . | . . . . . Total Damage . | . . . . . Kills . | . . . . . Allies Corrupted . | . . . . . Allies Melted . | . . . . . Intel | -11 -10 -10 -9 -9 ------- Run | Yrd Mat Min Mat Min Active Infowar (turns) 825 | 14 690 . 94 27 Structural 94 | . . . 94 . Seismic 731 | 14 690 . . 27 Robot Analysis Total . | . . . . . Derelict Logs Recovered 1 | . . . . 1 Drone Launches . | . . . . . Drone Recoveries . | . . . . . Exploration | -11 -10 -10 -9 -9 ------------- Run | Yrd Mat Min Mat Min Turns Passed 1821 | 117 954 244 159 347 Spaces Moved 1141 | 59 610 175 117 180 Core 21 | 4 5 . . 12 Treads 54 | 26 21 . 7 . Legs . | . . . . . Wheels 1066 | 29 584 175 110 168 Hover . | . . . . . Flight . | . . . . . Fastest Speed 50 | 50 95 110 95 50 Average Speed 105 | 120 102 110 108 100 Slowest Speed 300 | 160 300 110 240 115 Overloaded Moves . | . . . . . Propulsion Burnouts . | . . . . . Robots Hopped . | . . . . . Potential Cave-ins 1 | . 1 . . . Cave-ins Triggered 1 | . 1 . . . Exploration Rate (%) 30 | 4 72 37 15 25 Regions Visited 4 Branch Regions 2 Pre-discovered Areas 1 | . . . . 1 Known Exits Taken . | . . . . . Unknown Exits Taken 4 | 1 1 1 1 . Scrap Searched 4 | . . 1 . 3 Spaces Dug . | . . . . . Terrain Destroyed 161 | . 42 54 . 65 Melee . | . . . . . Projectile . | . . . . . AOE 161 | . 42 54 . 65 Terrain Rammed . | . . . . . Walls Destroyed . | . . . . . Machines Disabled . | . . . . . Actions | -11 -10 -10 -9 -9 --------- Run | Yrd Mat Min Mat Min Total 1565 | 84 832 202 138 309 Wait 193 | . 108 1 2 82 Move 1136 | 58 608 174 116 180 Hop . | . . . . . Pick Up 35 | 8 17 2 3 5 Fast Attach 18 | 7 10 . . 1 Attach 14 | . 3 3 2 6 Detach . | . . . . . Swap 26 | 1 11 2 6 6 Drop 20 | . 12 1 4 3 Fire 120 | 10 62 17 5 26 Melee . | . . . . . Ram . | . . . . . Kick . | . . . . . Crush . | . . . . . Escape Stasis 1 | . 1 . . . Rewire 2 | . . 2 . . Trap . | . . . . . Miscellaneous . | . . . . . Route ------- -11/Scrapyard -10/Materials (discovered 4 exits: *Mat x2 / [*Min x2]) -10/Mines -9/Materials -9/Mines History --------- Turn | Location | Event 59 | -11/Scrapyard | Discovered new exit (range 12) 118 | -11/Scrapyard | Entered Materials 270 | -10/Materials | Discovered new exit (range 13) 308 | -10/Materials | Build established: Mutant 720 | -10/Materials | Discovered new exit (range 15) 814 | -10/Materials | Discovered new exit (range 15) 981 | -10/Materials | Discovered new exit (range 6) 1030 | -10/Materials | Crushed by falling debris 1072 | -10/Materials | Entered Mines 1280 | -10/Mines | Discovered new exit (range 14) 1316 | -10/Mines | Entered Materials 1316 | -9/Materials | Evolved 2 slots: Propulsion x1, Utility x1 1447 | -9/Materials | Central database locked down 1465 | -9/Materials | Discovered new exit (range 9) 1475 | -9/Materials | Entered Mines 1483 | -9/Mines | YI-UF0 nonchalantly dropped a Grenade Launcher on the ground 1693 | -9/Mines | Learned Materials terminal intel 1696 | -9/Mines | Learned location of Storage (-9) 1815 | -9/Mines | Core integrity fell below 50% 1816 | -9/Mines | Released all parts (2) 1817 | -9/Mines | Core integrity fell below 20% 1822 | -9/Mines | Destroyed by YI-UF0 with YI-UF0's Doublenader Last Messages --------------- 01794_ The unstable cave ceiling collapses. 01794_ Lgt. Treads+ crushed. 01794_ The unstable cave ceiling collapses. 01795_ Arm. Wheel destroyed. 01795_ Imp. Ion Engine destroyed. 01795_ Grenade Launcher destroyed. 01796_ The unstable cave ceiling collapses. 01797_ YI-UF0 mumbles something. 01799_ The unstable cave ceiling collapses. 01799_ Wheel+ destroyed. 01803_ Core Shielding destroyed. 01803_ Assault Rifle destroyed. 01807_ The unstable cave ceiling collapses. 01809_ YI-UF0 mumbles something. 01810_ The unstable cave ceiling collapses. 01814_ Particle Gun destroyed. 01816_ Released Lrg. Storage Unit. 01816_ Released Utility Shielding. 01816_ Extracted 100 matter. 01817_ The unstable cave ceiling collapses. Map ----- +----------------------------------------------------+ | ?????????????????????????????? | | ?????????????????????????????? | | ?????????????????????????????? | | ?????????????????????????????? | | ?????????????????????????????? | | ?????????????????????????????? | | ?????????????????????????????? | | ?????????????????????????????? | | ?????????????????????????????? | | ?????????????????????????????? | | ?????????????????????????????? | | ????????##???????????????????? | | ??????? #???????????????????? | | ??????? ????????????????????? | | ??????? ????????????????????? | | ??????# ????????????????????? | | ????## ????????????????????? | | ????# ?????????????????????? | | ????# ?????????????????????? | | ????# ?????????????????????? | | ????# #?????????????????????? | | ????# #?????????????????????? | | ????# #?????????????????????? | | ????# #?????????????????????? | | ???## #??##?????????????????? | | ??## @!### #####?????#####???? | | ??# ##???## ####? | | ??## ###### * # ## | | ???## % ] = ! | | | ???# ###### ! ## | | ???# ###???# = *##? | | ???# # ####?## = ! #?? | | ???## ### ! #?? | | ????# ""## =# ##?? | | ????# g """## ##??? | | ???##[ """# ##### | | ???# !# # | | ???# *!!# #### | | ???# *! ### #### | | ??## ### #??# | | ??# ## ##?# | | ?# # # = #?# | | ?##### " ## #?# | | ?????## = #### ! ##?# | | ??????## #??## #??# | | ??????## [ #???## ##??# | | ???????## #????####???# | | ????????# #???????????# | | ????????#### ####???????????# | | ????????## ##?????????????# | +----------------------------------------------------+ Best States ------------- Heat Dissipation 28 Energy Generation 12 Energy Capacity 265 Matter Stores 300 Matter Capacity 300 Sight Range 16 Terrain Scan Density 10 Armor Coverage 150 Core Shielding 20 Utility Shielding 33 Evasion (%) 50 Recoil Reduction 1 Item Schematics ----------------- None Robot Schematics ------------------ None Fabricated ------------ Nothing Repaired ---------- Nothing Studied --------- Lgt. Treads | -9/Materials | Hacked Wheel | -9/Materials | Hacked Alien Tech Used ----------------- None Achievements -------------- None Challenges ------------ None Game ------ Seed HelicalControlBallwheel Manual? 0 Play Time 00:22:16 Cumulative 61.7 hours Start 2026.01.17 @ 00:29:17 End 2026.01.17 @ 00:50:39 Sessions 1 Manual Loads 0 Difficulty Rogue Special Mode None Game No. 67 Rogue 67 Adventurer 0 Explorer 0 Win Type - Total 1 Types 1/0/0/0/0/0/0/0/0/0 Lore% 45 Gallery% 44 Achievement% 33 Wizard Run 0 Options --------- Layout 0 ASCII 0 Keyboard 0 Movement Arrows Keybinds 1 Fullscreen 1 Font 18/X11 Map View 76x50 Zoom Use 0% Tactical HUD 1 Map Filters NONE Filters NONE Steam 1 RUN: f501f9e2-62da-4e20-8d4d-95846991a8ab